{"text_format":"1","workbook":"xlsx","n_sheets":3,"sheets":["Calculations","UserInterface","Start"],"not_rendered":{"charts":0,"images":3,"macros":1,"external_links":0,"defined_names":1,"comments":0,"pivot_tables":0},"unopened":[],"bounds":{"document_bytes":16777216,"sheet_cells":100000,"rows_first":2000,"rows_last":500,"rows_between":2000,"halvings":0,"cell_chars":16384,"cell_head_chars":4096},"cells_cut":0,"cells_raw":0,"read":"whole","date_system":"1900"}

{"sheet":"Calculations","index":0,"n_rows":46,"n_cols":21,"rows_kept":46,"cut":false,"hidden":true,"merged":[[42,7,45,7],[38,7,41,7],[34,7,37,7],[11,7,11,8],[0,1,0,2],[0,7,0,20],[26,7,29,7],[30,7,33,7]]}
[null,"Bandwidth ",null,null,null,null,null,"Sensor Parameters"]
[null,"Protocol","Bandwidth (Gbps)",null,"Bitness",null,"Camera Model","Sensor Type","Width","Height","Sensor clock MHz","Number of ticks for generating 2MHz clock","Sample clock (Mhz)","VMAX (datasheet)","Blank Lines","HSYNC 8bit dtatsheet","8bit datasheet HSYNC  \n(2Mhz clocks)","HSYNC 10bit dtatsheet","10bit datasheet HSYNC  \n(2Mhz clocks)","HSYNC 12bit dtatsheet","12bit datasheet HSYNC  \n(2Mhz clocks)"]
[null,"CXP3",2.5,null,8,null,"IRON 250","IMX250",{"$f":"VLOOKUP(UserInterface!D25,Calculations!I27:O30,2,FALSE)","v":2448},{"$f":"VLOOKUP(UserInterface!D25,Calculations!I27:O30,3,FALSE)","v":2048},74.25,1,{"$f":"K3/L3","v":74.25},{"$f":"VLOOKUP(UserInterface!D25,Calculations!I27:O30,4,FALSE)","v":"82e"},{"$f":"HEX2DEC(N3)-J3","v":46},{"$f":"VLOOKUP(UserInterface!D25,Calculations!I27:O30,5,FALSE)","v":"0D9"},{"$f":"ROUNDUP(HEX2DEC(P3)/L3,0)","v":217},{"$f":"VLOOKUP(UserInterface!D25,Calculations!I27:O30,6,FALSE)","v":"0F5"},{"$f":"ROUNDUP(HEX2DEC(R3)/L3,0)","v":245},{"$f":"VLOOKUP(UserInterface!D25,Calculations!I27:O30,7,FALSE)","v":"18C"},{"$f":"ROUNDUP(HEX2DEC(T3)/L3,0)","v":396}]
[null,"CXP6",4.9000000000000004,null,10,null,"IRON 252","IMX252",{"$f":"VLOOKUP(UserInterface!D25,Calculations!I31:O34,2,FALSE)","v":2048},{"$f":"VLOOKUP(UserInterface!D25,Calculations!I31:O34,3,FALSE)","v":1536},74.25,1,{"$f":"K4/L4","v":74.25},{"$f":"VLOOKUP(UserInterface!D25,Calculations!I31:O34,4,FALSE)","v":"62e"},{"$f":"HEX2DEC(N4)-J4","v":46},{"$f":"VLOOKUP(UserInterface!D25,Calculations!I31:O34,5,FALSE)","v":"0D9"},{"$f":"ROUNDUP(HEX2DEC(P4)/L4,0)","v":217},{"$f":"VLOOKUP(UserInterface!D25,Calculations!I31:O34,6,FALSE)","v":"0F5"},{"$f":"ROUNDUP(HEX2DEC(R4)/L4,0)","v":245},{"$f":"VLOOKUP(UserInterface!D25,Calculations!I31:O34,7,FALSE)","v":"18C"},{"$f":"ROUNDUP(HEX2DEC(T4)/L4,0)","v":396}]
[null,"CXP12",9.8000000000000007,null,12,null,"IRON 253","IMX253",{"$f":"VLOOKUP(UserInterface!D25,Calculations!I35:O38,2,FALSE)","v":4096},{"$f":"VLOOKUP(UserInterface!D25,Calculations!I35:O38,3,FALSE)","v":3000},74.25,1,{"$f":"K5/L5","v":74.25},{"$f":"VLOOKUP(UserInterface!D25,Calculations!I35:O38,4,FALSE)","v":"bf6"},{"$f":"HEX2DEC(N5)-J5","v":62},{"$f":"VLOOKUP(UserInterface!D25,Calculations!I35:O38,5,FALSE)","v":163},{"$f":"ROUNDUP(HEX2DEC(P5)/L5,0)","v":355},{"$f":"VLOOKUP(UserInterface!D25,Calculations!I35:O38,6,FALSE)","v":177},{"$f":"ROUNDUP(HEX2DEC(R5)/L5,0)","v":375},{"$f":"VLOOKUP(UserInterface!D25,Calculations!I35:O38,7,FALSE)","v":"20a"},{"$f":"ROUNDUP(HEX2DEC(T5)/L5,0)","v":522}]
[null,"CLHS",9.8000000000000007,null,null,null,"IRON 255","IMX255",{"$f":"VLOOKUP(UserInterface!D25,Calculations!I39:O42,2,FALSE)","v":4096},{"$f":"VLOOKUP(UserInterface!D25,Calculations!I39:O42,3,FALSE)","v":2160},74.25,1,{"$f":"K6/L6","v":74.25},{"$f":"VLOOKUP(UserInterface!D25,Calculations!I39:O42,4,FALSE)","v":"8b6"},{"$f":"HEX2DEC(N6)-J6","v":70},{"$f":"VLOOKUP(UserInterface!D25,Calculations!I39:O42,5,FALSE)","v":163},{"$f":"ROUNDUP(HEX2DEC(P6)/L6,0)","v":355},{"$f":"VLOOKUP(UserInterface!D25,Calculations!I39:O42,6,FALSE)","v":177},{"$f":"ROUNDUP(HEX2DEC(R6)/L6,0)","v":375},{"$f":"VLOOKUP(UserInterface!D25,Calculations!I39:O42,7,FALSE)","v":"20a"},{"$f":"ROUNDUP(HEX2DEC(T6)/L6,0)","v":522}]
[null,"10GIGE Vision",9.8000000000000007,null,null,null,"IRON 305","IMX305",{"$f":"VLOOKUP(UserInterface!D25,Calculations!I43:O46,2,FALSE)","v":4096},{"$f":"VLOOKUP(UserInterface!D25,Calculations!I43:O46,3,FALSE)","v":2160},74.25,1,{"$f":"K7/L7","v":74.25},{"$f":"VLOOKUP(UserInterface!D25,Calculations!I43:O46,4,FALSE)","v":"8b6"},{"$f":"HEX2DEC(N7)-J7","v":70},{"$f":"VLOOKUP(UserInterface!D25,Calculations!I43:O46,5,FALSE)","v":"none"},{"$f":"ROUNDUP(HEX2DEC(P7)/L7,0)","v":{"$error":"#NUM!"}},{"$f":"VLOOKUP(UserInterface!D25,Calculations!I43:O46,6,FALSE)","v":"none"},{"$f":"ROUNDUP(HEX2DEC(R7)/L7,0)","v":{"$error":"#NUM!"}},{"$f":"VLOOKUP(UserInterface!D25,Calculations!I43:O46,7,FALSE)","v":"20a"},{"$f":"ROUNDUP(HEX2DEC(T7)/L7,0)","v":522}]
[]
[null,null,null,null,null,null,null,"Max Width of Selected Sensor:",{"$f":"VLOOKUP(UserInterface!B23,Calculations!G3:I7,3,FALSE)","v":2448}]
[null,null,null,null,null,null,null,"Max Height of Selected Sensor:",{"$f":"VLOOKUP(UserInterface!B23,Calculations!G3:J7,4,FALSE)","v":2048}]
[]
[null,null,null,null,null,null,null,"Calculation"]
[null,null,null,null,null,null,null,"Protocol Bandwidth (Gbps)",{"$f":"VLOOKUP((UserInterface!D29),B3:C7,2,FALSE)","v":9.8000000000000007}]
[null,null,null,null,null,null,null,"Sample clock ",{"$f":"VLOOKUP((UserInterface!B23),G3:U7,7,FALSE)","v":74.25}]
[null,null,null,null,null,null,null,"Shortest HSYNC (2Mhz clocks)",{"$f":"VLOOKUP((UserInterface!B23),G3:U7,(UserInterface!D28+3),FALSE)","v":217}]
[null,null,null,null,null,null,null,"Shortest HSYNC (us)",{"$f":"I15/I14","v":2.9225589225589226}]
[null,null,null,null,null,null,null,"Bits per line",{"$f":"UserInterface!D27*(UserInterface!D28)","v":19584}]
[null,null,null,null,null,null,null,"Line duration (Limited by bandwidth) (us) ",{"$f":"I17/(I13*1000)","v":1.9983673469387755}]
[null,null,null,null,null,null,null,"Line duration (Sensor and bandwidth limited) (us) ",{"$f":"MAX(I16,I18)","v":2.9225589225589226}]
[null,null,null,null,null,null,null,"HSYNC Actual (2Mhz clocks)",{"$f":"CEILING(I19*I14,1)","v":217}]
[null,null,null,null,null,null,null,"Line duration Actual (After 2Mhz roundup) (us) ",{"$f":"I20/I14","v":2.9225589225589226}]
[null,null,null,null,null,null,null,"Sensor Blank Lines ",{"$f":"VLOOKUP((UserInterface!B23),G3:U7,9,FALSE)","v":46}]
[null,null,null,null,null,null,null,"Total frame time (us)",{"$f":"I21*(UserInterface!D26+I22)","v":6119.8383838383843}]
[null,null,null,null,null,null,null,"Frame rate (fps)",{"$f":"1000000/I23","v":163.40300793577435}]
[]
[null,"Sensor Read Out Mode",null,null,null,null,null,"Sensor Type","Read out mode","Width","Height","VMAX (datasheet)","HSYNC 8bit dtatsheet","HSYNC 10bit dtatsheet","HSYNC 12bit dtatsheet"]
[null,"All Pixels",null,null,null,null,null,"IMX250","All Pixels",2448,2048,"82e","0D9","0F5","18C"]
[null,"1/2 Subsampling",null,null,null,null,null,null,"1/2 Subsampling",1220,1024,"42a","0da",104,"18c"]
[null,"Vertical 2pxl FD Binning",null,null,null,null,null,null,"Vertical 2pxl FD Binning",2448,1024,"42a","0d9","0f5","18c"]
[null,"2x2 vertical FD Binning",null,null,null,null,null,null,"2x2 vertical FD Binning","NONE","NONE","NONE","NONE","NONE","NONE"]
[null,null,null,null,null,null,null,"IMX252","All Pixels",2048,1536,"62e","0D9","0F5","18C"]
[null,null,null,null,null,null,null,null,"1/2 Subsampling",1024,768,"32A","0d9","0f5","18c"]
[null,null,null,null,null,null,null,null,"Vertical 2pxl FD Binning",2048,768,"32a","0d9","0f5","18c"]
[null,null,null,null,null,null,null,null,"2x2 vertical FD Binning","NONE","NONE","NONE","NONE","NONE","NONE"]
[null,null,null,null,null,null,null,"IMX253","All Pixels",4096,3000,"bf6",163,177,"20a"]
[null,null,null,null,null,null,null,null,"1/2 Subsampling",2048,1500,616,163,177,"20a"]
[null,null,null,null,null,null,null,null,"Vertical 2pxl FD Binning","NONE","NONE","NONE","NONE","NONE","NONE"]
[null,null,null,null,null,null,null,null,"2x2 vertical FD Binning","NONE","NONE","NONE","NONE","NONE","NONE"]
[null,null,null,null,null,null,null,"IMX255","All Pixels",4096,2160,"8b6",163,177,"20a"]
[null,null,null,null,null,null,null,null,"1/2 Subsampling",2048,1080,476,164,177,"20a"]
[null,null,null,null,null,null,null,null,"Vertical 2pxl FD Binning",4096,1080,476,164,177,"20a"]
[null,null,null,null,null,null,null,null,"2x2 vertical FD Binning",2048,1080,476,164,177,"20a"]
[null,null,null,null,null,null,null,"IMX305","All Pixels",4096,2160,"8b6","none","none","20a"]
[null,null,null,null,null,null,null,null,"1/2 Subsampling",2048,1080,"NONE","NONE","NONE","20a"]
[null,null,null,null,null,null,null,null,"Vertical 2pxl FD Binning","NONE","NONE","NONE","NONE","NONE","NONE"]
[null,null,null,null,null,null,null,null,"2x2 vertical FD Binning","NONE","NONE","NONE","NONE","NONE","NONE"]

{"sheet":"UserInterface","index":1,"n_rows":30,"n_cols":4,"rows_kept":30,"cut":false,"hidden":true,"merged":[[27,3,27,4],[28,3,28,4],[29,3,29,4],[29,1,29,2],[24,1,24,2],[24,3,24,4],[25,1,25,2],[26,1,26,2],[27,1,27,2],[28,1,28,2],[25,3,25,4],[26,3,26,4],[22,0,23,0],[3,1,5,2],[6,1,6,2],[14,1,17,4],[22,1,23,1],[19,1,20,2],[21,1,21,4]]}
[]
[]
[]
[null,"IRON"]
[]
[]
[null,"Frame-Rate Calculator"]
[]
[]
[]
[]
[]
[]
[]
[null,"This document is provided as a simple and convinent tool for our customers to use. Please feel free to contact our support team with any questions - we will be happy to  provide assitance and support! For more information, products and the latest updates visit our website,  www.KayaInstruments.com"]
[]
[]
[]
[]
[null,"Camera Selector"]
[]
[null," Select a camera model from the drop-down menu below:"]
["Selector u","IRON 250"]
[null,null,{"$f":"VLOOKUP(B23,Calculations!G3:J7,4,FALSE)&\" (V) x \"&VLOOKUP(B23,Calculations!G3:J7,3,FALSE)&\" (H)\"","v":"2048 (V) x 2448 (H)"}]
[null,"Sensor Read Out Mode Selection:",null,"All Pixels"]
[null,"Number of Desired lines (V)",null,2048]
[null,"Desired Number of Horizontal Pixels (H)",null,2448]
[null,"Bitness Selection:",null,8]
[null,"Interface Selection:",null,"CXP12"]
[null,"MAX Frame Rate: ",null,{"$f":"IF(OR(D26=\"Please Type Number of Desired Lines...\",D27=\"Please Type Desired Width...\",D28=\"Please Select...\",D29=\"Please Select...\"),\"Not Enough Data\",Calculations!I24)","v":163.40300793577435}]

{"sheet":"Start","index":2,"n_rows":18,"n_cols":2,"rows_kept":18,"cut":false,"hidden":false,"merged":[[17,1,17,4]]}
[]
[]
[]
[]
[]
[]
[]
[]
[]
[]
[]
[]
[]
[]
[]
[]
[]
[null,"You must enable macros in order to use this calculator!"]